[Event "Frauenbundesliga 2021-22"]
[Site "Germany"]
[Date "2022.05.29"]
[Round "11.1"]
[White "Osmak, Yuliia"]
[Black "Abdumalik, Zhansaya"]
[Result "1/2-1/2"]
[ECO "A34"]
[WhiteElo "2428"]
[BlackElo "2489"]
[Annotator "TA"]
[PlyCount "89"]
[EventDate "2021.11.26"]
[EventType "team-tourn"]
[EventCountry "GER"]
[SourceTitle "playchess.com"]
[Source "ChessBase"]
[SourceQuality "1"]
[WhiteTeam "Bad Koenigshofen"]
[BlackTeam "Baden-Baden"]
[TimeControl "40/5400+30:1800+30"]

{[%evp 12,89,55,54,64,67,63,63,77,63,81,74,97,114,118,118,125,108,155,140,166,157,153,115,126,107,116,81,110,50,63,37,114,37,123,128,129,132,131,101,154,171,268,270,314,233,278,263,214,174,333,75,192,208,179,0,0,0,10,0,76,64,89,61,137,104,90,-6,-8,-107,0,0,0,0,0,0,0,0,-4,-4]} 1. Nf3 {[%emt 0:00:15]} Nf6 {[%emt 0:00:14]} 2. c4 {[%emt 0:00:07]} c5 {[%emt 0:01:07]} 3. Nc3 {[%emt 0:00:11]} b6 {[%emt 0:02:16]} 4. e4 {[%emt 0:00:16]} d6 {[%emt 0:02:29]} 5. d4 {[%emt 0:00:08]} cxd4 {[%emt 0:00:51]} 6. Nxd4 {[%emt 0:00:05]} Bb7 {[%emt 0:00:23]} 7. f3 {[%emt 0:00:24]} g6 {[%emt 0:03:21] A34: Symmetrical English: 2 Nc3, lines with ...d5.} 8. Be3 {[%emt 0:00:46]} Bg7 {[%emt 0:00:56]} 9. Qd2 {[%emt 0:04:38]} h5 {[%emt 0:01:20] White is slightly better.} 10. Be2 {[%emt 0:08:39] [#]} a6 $146 {[%emt 0:07:55]} ({Predecessor:} 10... Nbd7 11. O-O h4 12. a3 Rc8 13. Rac1 Ne5 14. b3 h3 15. g3 Qd7 16. Nd5 O-O {½-½ (31) Salcedo,J (1984)-Dominguez,L (2140) Villavicencio 2021}) 11. O-O {[%emt 0:10:16]} h4 {[%emt 0:02:46]} 12. Rfd1 {[%emt 0:01:43]} Nbd7 {[%emt 0:02:07]} 13. b4 {[%emt 0:05:27]} Rc8 {[%emt 0:06:50]} 14. Rac1 {[%emt 0:00:38]} Qc7 {[%emt 0:09:12]} (14... h3 $142) 15. a4 {[%emt 0:12:32]} Qb8 {[%emt 0:03:38]} 16. Nb3 {[%emt 0:03:07]} O-O {[%emt 0:06:17]} 17. Nd5 {[%emt 0:06:51]} Rfe8 {[%emt 0:03:59]} 18. h3 {[%emt 0:07:10]} Bc6 {[%emt 0:07:02]} 19. b5 {[%emt 0:07:57]} axb5 {[%emt 0:02:31]} 20. axb5 {[%emt 0:00:20] 0x0.0024a8ba4f28dp-1022s more active pieces.} ({Better is} 20. Nxf6+ $16 Nxf6 21. axb5 (21. cxb5 Ba8 $16)) 20... Bxd5 $14 {[%emt 0:03:34]} 21. cxd5 {[%emt 0:00:31]} Nh5 {[%emt 0:01:23] [#]} (21... Rxc1 $1 $14 22. Rxc1 Nh5) 22. Nd4 {[%emt 0:10:26]} (22. Rc6 $1 $16) 22... Nc5 {[%emt 0:01:46]} (22... Rxc1 $1 $14 23. Rxc1 Qa7) 23. Nc6 $16 {[%emt 0:01:44]} Qb7 {[%emt 0:00:32]} 24. Bc4 {[%emt 0:02:56] Against Nb3} Kh7 {[%emt 0:02:39]} 25. Qe1 {[%emt 0:07:05]} Bf6 {[%emt 0:04:28]} (25... Ng3 $142) 26. Bf2 {[%emt 0:00:06]} g5 {[%emt 0:02:28]} (26... Ng3 $142 27. Bxg3 hxg3 28. Qxg3 Kg7) 27. e5 $18 {[%emt 0:00:09]} dxe5 {[%emt 0:04:38]} 28. Ra1 {[%emt 0:02:14]} (28. Nxe5 Kg7 $16) 28... Qd7 {[%emt 0:02:13]} 29. Bxc5 {[%emt 0:05:14]} (29. Nxe5 Bxe5 30. Qxe5 f6 $14) 29... bxc5 {[%emt 0:00:02]} 30. Ra7 {[%emt 0:00:03]} (30. Nxe5 Qc7 31. Nxf7 Kg7 $14) 30... Qd6 {[%emt 0:00:30]} (30... Rc7 {was necessary.} 31. Rda1 e4) 31. b6 $2 {[%emt 0:02:19]} (31. Qe4+ $18 {and the rest is easy.} Kh6 32. Nxe7 Rxe7 33. Bd3) 31... Ng3 {[%emt 0:01:47]} (31... e4 $16) 32. b7 {[%emt 0:00:33]} Rb8 {[%emt 0:00:52]} 33. Nxb8 $2 {[%emt 0:01:17]} (33. Bd3+ $18 e4 34. fxe4 (34. Bxe4+ Kh6 $16)) 33... Rxb8 $11 {[%emt 0:00:09]} 34. Ra6 {[%emt 0:00:36]} Qd7 {[%emt 0:00:38]} 35. Bd3+ {[%emt 0:00:37]} e4 {[%emt 0:02:47]} (35... Kg7 $11) 36. Bxe4+ $16 {[%emt 0:00:04]} ({Much worse is} 36. fxe4 $6 Bd4+ 37. Kh2 Be5 $15) 36... Kg7 {[%emt 0:00:05]} 37. d6 {[%emt 0:00:52]} Bd4+ {[%emt 0:01:02] [#]} (37... Nxe4 $14 38. Qxe4 Rxb7) 38. Rxd4 $1 {[%emt 0:00:16][%mdl 512]} cxd4 {[%emt 0:00:02] [#]} 39. Qd2 {[%emt 0:00:53]} ({But not} 39. dxe7 $6 Qxe7 40. Qf2 Qb4 $15) ({White should play} 39. Ra5 $1 $16 {[%cal Ra5g5]} Qxd6 40. Rxg5+ Kf6 41. Rg4) 39... f6 $11 {[%emt 0:03:07]} 40. dxe7 {[%emt 0:00:29]} (40. Qd3 $11) 40... Nxe4 {[%emt 0:02:56]} (40... Qxe7 $17 41. Rb6 Nxe4 42. fxe4 Qxe4) 41. fxe4 {[%emt 0:30:24][%cal Oe4e5] aiming for e5! Dancing on a razor blade. The position is equal.} Qxb7 {[%emt 0:34:31]} 42. Re6 {[%emt 0:00:00] White threatens Qf2 and mate.} Qd7 {[%emt 0:00:00]} 43. e8=Q {[%emt 0:00:00]} Rxe8 {[%emt 0:00:00]} 44. Rxe8 {[%emt 0:00:00]} Qxe8 {[%emt 0:00:00]} 45. Qxd4 {[%emt 0:00:00] White really could win this.  Weighted Error Value: White=0.40/Black=0.31} 1/2-1/2

[Event "Frauenbundesliga 2021-22"]
[Site "Germany"]
[Date "2022.05.29"]
[Round "11.1"]
[White "Cyfka, Karina"]
[Black "Unuk, Laura"]
[Result "1/2-1/2"]
[ECO "D37"]
[WhiteElo "2404"]
[BlackElo "2338"]
[Annotator "TA"]
[PlyCount "49"]
[EventDate "2021.11.26"]
[EventType "team-tourn"]
[EventCountry "GER"]
[SourceTitle "playchess.com"]
[Source "ChessBase"]
[SourceQuality "1"]
[WhiteTeam "Leipzig"]
[BlackTeam "Harksheide"]
[TimeControl "40/5400+30:1800+30"]

{[%evp 12,49,32,16,22,15,39,35,35,37,27,25,17,0,19,0,17,12,10,15,15,18,8,10,6,6,7,7,7,0,0,0,0,0,0,0,0,-4,7,8]} 1. d4 {[%emt 0:00:04]} Nf6 {[%emt 0:00:10]} 2. c4 {[%emt 0:00:12]} e6 {[%emt 0:00:06]} 3. Nf3 {[%emt 0:00:29]} d5 {[%emt 0:01:22]} 4. Nc3 {[%emt 0:00:23]} Be7 {[%emt 0:00:17]} 5. Bf4 {[%emt 0:00:59]} O-O {[%emt 0:00:43]} 6. e3 {[%emt 0:00:25]} b6 {[%emt 0:07:08]} 7. Bd3 {[%emt 0:00:37]} dxc4 {[%emt 0:01:44] D37: Queen's Gambit Declined: 5 Bf4.} 8. Bxc4 {[%emt 0:00:07]} Ba6 {[%emt 0:00:18]} 9. Bxa6 {[%emt 0:00:12]} Nxa6 {[%emt 0:00:05] White is slightly better.} 10. O-O {[%emt 0:00:12]} c5 {[%emt 0:05:09]} 11. Qe2 {[%emt 0:00:49]} Qc8 {[%emt 0:03:52]} 12. Rac1 {[%emt 0:02:00] The position is equal.} Qb7 $1 {[%emt 0:01:21]} 13. Rfd1 {[%emt 0:04:56]} Rac8 {[%emt 0:05:43]} 14. Nb5 {[%emt 0:09:12]} Rfd8 {[%emt 0:28:11]} 15. a3 {[%emt 0:07:08]} h6 {[%emt 0:01:53] [#]} 16. Ne5 $146 {[%emt 0:05:41]} ({Predecessor:} 16. h3 Nd5 17. Bg3 cxd4 18. exd4 Nb8 19. Qe4 Qd7 20. Qd3 Nc6 21. Ne5 Nxe5 22. Bxe5 {0-1 (68) Vogel,R (2515)-Fridman,D (2749) Playchess.com INT 2021}) 16... cxd4 {[%emt 0:04:12]} 17. Nxd4 {[%emt 0:03:43]} Nb8 {[%emt 0:12:38] Against Nec6} 18. h3 {[%emt 0:03:53]} a6 {[%emt 0:01:11]} 19. Qf3 {[%emt 0:06:28]} (19. Kf1 {with more complications.} Rxc1 20. Rxc1 Rc8 21. Rxc8+ Qxc8 22. Qc4) 19... Qxf3 {[%emt 0:04:15]} 20. Nexf3 {[%emt 0:04:24]} Nc6 {[%emt 0:00:31]} 21. Kf1 {[%emt 0:05:47]} Ne4 {[%emt 0:05:59]} 22. Nxc6 {[%emt 0:07:51]} Rxd1+ {[%emt 0:00:05]} 23. Rxd1 {[%emt 0:00:02]} Rxc6 {[%emt 0:00:04]} 24. Nd4 {[%emt 0:00:04] Prevents Rc2.} Rc5 {[%emt 0:02:19]} 25. f3 {[%emt 0:04:59] Weighted Error Value: White=0.03 (flawless) /Black=0.02 (flawless)} 1/2-1/2

[Event "Frauenbundesliga 2021-22"]
[Site "Germany"]
[Date "2022.05.29"]
[Round "11.1"]
[White "Rogule, Laura"]
[Black "Socko, Monika"]
[Result "0-1"]
[ECO "A13"]
[WhiteElo "2297"]
[BlackElo "2384"]
[Annotator "TA"]
[PlyCount "94"]
[EventDate "2021.11.26"]
[EventType "team-tourn"]
[EventCountry "GER"]
[SourceTitle "playchess.com"]
[Source "ChessBase"]
[SourceQuality "1"]
[WhiteTeam "Loeberitz"]
[BlackTeam "Hamburger SK"]
[TimeControl "40/5400+30:1800+30"]

{[%evp 11,94,2,39,34,38,-24,64,70,58,73,72,75,111,108,102,129,113,73,132,76,117,77,68,77,110,105,124,91,104,60,54,12,8,23,25,-20,50,33,33,29,29,24,93,33,47,-54,-12,-28,-12,-80,-58,-77,-51,-162,-146,-162,-154,-171,-177,-168,-146,-164,-169,-117,-134,-647,-634,-636,-581,-1535,-1515,-2952,-2526,-1371,-1362,-1362,-1355,-1268,-727,-726,-722,-708,-692,-29990,-29991]} 1. c4 {[%emt 0:00:03]} Nf6 {[%emt 0:00:04]} 2. g3 {[%emt 0:00:13]} e6 {[%emt 0:00:05]} 3. Bg2 {[%emt 0:00:14]} d5 {[%emt 0:00:06]} 4. Nf3 {[%emt 0:00:51]} dxc4 {[%emt 0:02:16]} 5. Qa4+ {[%emt 0:01:08]} Bd7 {[%emt 0:00:07]} 6. Qxc4 {[%emt 0:00:07]} Bc6 {[%emt 0:00:20]} 7. Nc3 {[%emt 0:02:53] A13: English Opening: 1...e6.} Nbd7 {[%emt 0:01:14][%cal Bb8d7,Bd7c5,Bc5a4][%mdl 32]} 8. e4 {[%emt 0:16:25]} ({Better is} 8. O-O $14) 8... Be7 {[%emt 0:08:58]} (8... Rb8 $1 $11) 9. O-O $14 {[%emt 0:07:05] White is slightly better.} O-O {[%emt 0:00:55]} 10. Rd1 {[%emt 0:12:10] [#]} a5 $146 {[%emt 0:08:15]} ({Predecessor:} 10... e5 11. Qe2 Bc5 12. d4 exd4 13. Nxd4 Bxd4 14. Rxd4 Qe7 15. Bf4 Nc5 16. e5 Bxg2 17. Kxg2 {1-0 (31) Christiansen,J (2559)-Unuk,L (2234) Chess.com INT 2019}) 11. Qe2 {[%emt 0:15:13]} Nc5 {[%emt 0:09:16]} 12. Ne5 {[%emt 0:02:24] Against Qd3} Be8 {[%emt 0:05:13]} 13. d4 {[%emt 0:01:40]} Na4 {[%emt 0:00:30]} 14. Be3 {[%emt 0:02:45]} Ra6 {[%emt 0:06:25]} (14... Nxc3 $142 15. bxc3 Ba4) 15. f4 {[%emt 0:07:56]} (15. Nb1 $142) 15... Qb8 {[%emt 0:02:05]} 16. g4 {[%emt 0:01:11][%cal Bg3g4,Bg4g5][%mdl 32]} Nxc3 {[%emt 0:06:53]} 17. bxc3 {[%emt 0:00:01]} Ba4 {[%emt 0:00:05]} 18. Rdb1 {[%emt 0:13:07]} Qc8 {[%emt 0:00:47]} 19. g5 {[%emt 0:06:19]} Nd7 {[%emt 0:00:28]} 20. Nd3 {[%emt 0:01:01]} c5 $1 {[%emt 0:07:17]} 21. f5 {[%emt 0:01:29][%cal Of5f6]} cxd4 $1 {[%emt 0:05:22]} 22. cxd4 {[%emt 0:00:12] Strongly threatening e5.} Rc6 {[%emt 0:00:51]} 23. f6 {[%emt 0:03:51]} Ba3 {[%emt 0:01:40]} (23... gxf6 $11 24. gxf6 Nxf6) 24. fxg7 {[%emt 0:03:22]} Kxg7 {[%emt 0:00:35]} 25. Ne1 {[%emt 0:00:35]} Rc3 {[%emt 0:03:34]} 26. Bd2 {[%emt 0:00:31]} Rc4 {[%emt 0:00:07] [#]} (26... Qc4 $11 27. Qxc4 (27. Qf2 e5 $14) 27... Rxc4) 27. Qd3 {[%emt 0:00:35]} (27. Qh5 Rxd4 28. Be3 (28. Bxa5 $2 Qc5 $19) 28... Rc4 $17) (27. Qe3 $1 $16 {[%cal Re3a3]} Bb4 28. Bxb4 axb4 29. Qd2) 27... Bb4 {[%emt 0:00:22]} 28. a3 {[%emt 0:00:29]} (28. Bxb4 $14 Rxb4 29. Qd2) 28... Bxd2 {[%emt 0:03:20]} (28... Ne5 $5 {[%cal Re5d3]} 29. Qe3 (29. dxe5 Rd8 $17) 29... Bxd2 30. Qxd2 Qd8 $11) 29. Qxd2 {[%emt 0:00:02]} e5 {[%emt 0:00:12]} 30. dxe5 {[%emt 0:00:37]} (30. d5 $11 {remains equal.}) 30... Qc5+ $17 {[%emt 0:02:29]} 31. Kh1 {[%emt 0:00:19]} Nxe5 {[%emt 0:00:36][%cal Bd7e5,Be5c4,Bc4e3][%mdl 32]} 32. Qb2 {[%emt 0:01:01]} (32. Rxb7 $15 Bc6 33. Rb3 (33. Rc7 Kg8 $17)) 32... Kg8 {[%emt 0:00:56]} 33. Rc1 {[%emt 0:00:26]} Bc6 {[%emt 0:02:39]} 34. Rxc4 {[%emt 0:00:31]} Nxc4 {[%emt 0:00:07]} 35. Qf6 {[%emt 0:00:30]} Ne3 {[%emt 0:02:25]} ({Don't do} 35... Nxa3 36. Nd3 Qc2 37. Rxa3 $16) 36. Nd3 {[%emt 0:00:23]} Qc2 {[%emt 0:00:22][%csl Ge3,LRd3,LRg2][%cal Rc2g2]} 37. Nf2 {[%emt 0:00:34]} Re8 {[%emt 0:03:31]} 38. Rg1 $2 {[%emt 0:00:42][%mdl 8192] Now White is beyond hope.} (38. Kg1 $17) 38... Re6 $19 {[%emt 0:05:04] Active counter play!} (38... Nxg2 $2 39. Ng4 Kf8 40. Nh6 $18) 39. Qd8+ {[%emt 0:00:16] [#]} Be8 $1 {[%emt 0:02:10]} ({And not} 39... Re8 40. Qf6 $17) 40. Nd3 {[%emt 0:00:30]} Nxg2 {[%emt 0:00:43]} 41. Rxg2 {[%emt 0:30:46]} Qd1+ {[%emt 0:30:40]} 42. Rg1 {[%emt 0:00:07]} Qf3+ {[%emt 0:00:04]} 43. Rg2 {[%emt 0:00:03]} Rxe4 {[%emt 0:01:58][%cal Of3d3] ( -> ...Qxd3!)} 44. Kg1 {[%emt 0:00:00]} Qe3+ {[%emt 0:00:00]} 45. Kf1 {[%emt 0:00:00]} Rd4 {[%emt 0:00:00]} 46. Rg3 {[%emt 0:00:00]} Qe4 {[%emt 0:00:00]} 47. Nf2 {[%emt 0:00:00]} Qb1+ {[%emt 0:00:00] Weighted Error Value: White=0.71/Black=0.27 (precise)} ({Not} 47... Rxd8 48. Nxe4 Kg7 49. Nf6 $17) 0-1

[Event "Frauenbundesliga 2021-22"]
[Site "Germany"]
[Date "2022.05.29"]
[Round "11.1"]
[White "Sliwicka, Alicja"]
[Black "Sieber, Fiona"]
[Result "0-1"]
[ECO "B42"]
[WhiteElo "2273"]
[BlackElo "2264"]
[Annotator "TA"]
[PlyCount "120"]
[EventDate "2021.11.26"]
[EventType "team-tourn"]
[EventCountry "GER"]
[SourceTitle "playchess.com"]
[Source "ChessBase"]
[SourceQuality "1"]
[WhiteTeam "Rodewisch"]
[BlackTeam "Lehrte"]
[TimeControl "40/5400+30:1800+30"]

{[%evp 14,120,50,22,56,40,48,31,44,22,30,14,23,24,25,22,13,36,46,45,76,22,16,-23,-11,-48,-45,-41,-52,-66,-62,8,-59,-74,-14,-10,-4,-23,-15,-35,-21,-24,-23,-21,-25,-56,-39,-76,-73,-70,-50,-115,-92,-672,-666,-689,-651,-612,-520,-621,-626,-624,-624,-570,-567,-1499,-1492,-1382,-1649,-5373,-514,-2597,-2593,-1508,-1223,-29978,-29979,-29979,-29980,-29980,-29981,-29979,-29978,-29978,-29979,-29979,-29980,-29980,-29981,-29980,-29981,-29982,-29983,-29985,-29986,-29986,-29987,-29993,-29986,-29986,-29987,-29987,-29981,-29988,-29989,-29989,-29990,-29990,-29990]} 1. e4 {[%emt 0:00:04]} c5 {[%emt 0:00:03]} 2. Nf3 {[%emt 0:00:05]} e6 {[%emt 0:00:03]} 3. d4 {[%emt 0:00:06]} cxd4 {[%emt 0:00:04]} 4. Nxd4 {[%emt 0:00:06]} a6 {[%emt 0:00:08]} 5. Bd3 {[%emt 0:00:06]} Bc5 {[%emt 0:00:05]} 6. Nb3 {[%emt 0:00:14]} Be7 {[%emt 0:00:04]} 7. O-O {[%emt 0:01:19]} d6 {[%emt 0:00:31]} 8. f4 {[%emt 0:01:07]} Qc7 {[%emt 0:04:07] B42: Sicilian: Kan Variation: 5 Bd3.} 9. Bd2 {[%emt 0:01:29]} Nf6 {[%emt 0:00:57]} 10. Qf3 {[%emt 0:02:00]} O-O {[%emt 0:02:02] White is slightly better.} 11. Nc3 {[%emt 0:01:04] [#]} Nc6 $146 {[%emt 0:00:16]} ({Predecessor:} 11... Re8 12. Rae1 Nc6 13. Qg3 Bf8 14. Qh4 h6 15. Rf3 Qe7 16. Rg3 g6 17. f5 Nh7 18. Qh5 g5 19. fxe6 Bxe6 20. e5 f6 21. Bxh7+ Kxh7 22. exf6 Qxf6 23. Ne4 Qg6 24. Nxg5+ {1-0 (24) Shuqja,K (1506)-Zulfugarli,M (1277) Mamaia 2017}) 12. Rae1 {[%emt 0:03:15]} (12. a3 {is interesting.} b5 13. g4 b4 14. axb4 Nxb4 15. g5) 12... Nb4 {[%emt 0:01:31]} (12... b5 {seems wilder.} 13. Qg3 Bb7 14. e5 dxe5 15. fxe5 Nd7) 13. Kh1 {[%emt 0:14:58]} (13. Qg3 {feels hotter.} Bd7 14. e5 Ne8 15. Be4) 13... Nxd3 {[%emt 0:00:10]} 14. cxd3 {[%emt 0:00:09]} b5 {[%emt 0:02:51]} 15. Rc1 {[%emt 0:01:47][%cal Oe4e5] Hoping for e5!} Qb8 {[%emt 0:07:51]} (15... Qb6) 16. Ne2 {[%emt 0:04:57]} Bd7 {[%emt 0:10:20]} 17. Ned4 {[%emt 0:02:18]} (17. g4 $16) 17... Rc8 $11 {[%emt 0:04:43]} 18. e5 {[%emt 0:12:34]} Nd5 {[%emt 0:06:08]} ({But not} 18... dxe5 19. Rxc8+ Qxc8 20. fxe5 $16) 19. f5 {[%emt 0:07:00]} Rxc1 {[%emt 0:03:01]} 20. Bxc1 {[%emt 0:03:28][%cal Of5f6]} dxe5 {[%emt 0:01:13]} 21. fxe6 {[%emt 0:02:30]} fxe6 {[%emt 0:00:19]} 22. Qf7+ {[%emt 0:04:39]} Kh8 {[%emt 0:00:47]} 23. Nxe6 {[%emt 0:01:59] [#]} Bxe6 {[%emt 0:00:03]} (23... Qg8 $1 $17 {[%cal Rg8f7]} 24. Nec5 Qxf7 25. Rxf7 Be8) 24. Qxe6 {[%emt 0:00:13]} Qd6 {[%emt 0:00:04]} 25. Qg4 {[%emt 0:05:45]} Nf6 {[%emt 0:02:49]} 26. Qe2 {[%emt 0:00:20]} Rd8 {[%emt 0:02:02]} 27. d4 {[%emt 0:02:58]} e4 {[%emt 0:08:26]} 28. Bf4 {[%emt 0:02:26]} Qd5 {[%emt 0:00:27]} 29. Rc1 {[%emt 0:01:31]} Bd6 {[%emt 0:06:09]} 30. Bxd6 {[%emt 0:07:18]} Qxd6 {[%emt 0:01:21]} 31. Kg1 {[%emt 0:02:40]} Re8 {[%emt 0:01:22]} 32. Rc3 {[%emt 0:01:38]} (32. Qe3 $15) 32... Nd5 {[%emt 0:04:03] Black is more active.} 33. Qh5 $2 {[%emt 0:04:35][%mdl 8192] Now White is beyond hope.} (33. Rc1 $17) 33... g6 $19 {[%emt 0:00:59]} 34. Qe2 {[%emt 0:04:12]} Nxc3 {[%emt 0:00:06]} 35. bxc3 {[%emt 0:00:04][%mdl 4096] Endgame KQR-KQN} Qf4 {[%emt 0:02:27] Prevents Qe3.} 36. Nd2 {[%emt 0:01:06]} e3 {[%emt 0:01:23]} 37. Nf3 {[%emt 0:00:06]} Qe4 {[%emt 0:00:28]} 38. h3 {[%emt 0:00:53]} Rc8 {[%emt 0:01:39]} 39. a4 {[%emt 0:01:12]} Rxc3 {[%emt 0:02:18] ...Rc1+ is the strong threat.} 40. axb5 {[%emt 0:01:29]} Rc1+ {[%emt 0:03:50]} 41. Kh2 {[%emt 0:34:05]} Qf4+ {[%emt 0:30:09]} (41... Rc2 $142 42. Qxc2 Qxc2) 42. g3 {[%emt 0:00:05]} Qe4 {[%emt 0:00:04] ( -> ...Rc2)} 43. Ne1 {[%emt 0:00:18] Inhibits Rc2.} axb5 {[%emt 0:00:34] aiming for ...Kg7.} 44. d5 {[%emt 0:00:45]} Qb1 {[%emt 0:11:59] Black mates.} 45. Qf3 {[%emt 0:00:00]} Kg7 {[%emt 0:00:00]} 46. Qf4 {[%emt 0:00:00]} Qb2+ {[%emt 0:00:00]} ({And not} 46... Rxe1 47. Qe5+ Kf8 48. Qb8+ Kg7 49. Qe5+ Kf8 50. Qb8+ Kg7 51. Qe5+ $11) 47. Ng2 {[%emt 0:00:00]} Rc2 {[%emt 0:00:00]} 48. Kh1 {[%emt 0:00:00]} Rxg2 {[%emt 0:00:00]} 49. Qc7+ {[%emt 0:00:00]} Kh6 {[%emt 0:00:00]} 50. Qf4+ {[%emt 0:00:00] [#]} g5 $1 {[%emt 0:00:00]} 51. Qf8+ {[%emt 0:00:00]} Qg7 {[%emt 0:00:00]} ({Not} 51... Kg6 52. Qe8+ Kh6 53. Qe6+ Kg7 54. Qe7+ Kg8 55. Qe8+ Kg7 56. Qe7+ Kh6 57. Qe6+ Kh5 58. Qe8+ Kh6 59. Qe6+ $11) 52. Qd6+ {[%emt 0:00:00]} Kh5 {[%emt 0:00:00]} 53. g4+ {[%emt 0:00:00]} Kh4 {[%emt 0:00:00]} 54. Kxg2 {[%emt 0:00:00] KQ-KQ} Qb2+ {[%emt 0:00:00]} 55. Kh1 {[%emt 0:00:29]} Qc1+ {[%emt 0:00:00]} 56. Kg2 {[%emt 0:00:07]} Qd2+ {[%emt 0:00:00]} 57. Kf3 {[%emt 0:00:16]} Qf2+ {[%emt 0:00:00]} 58. Ke4 {[%emt 0:00:04]} e2 {[%emt 0:00:00]} 59. Qh6+ {[%emt 0:00:41]} Kg3 {[%emt 0:00:00]} 60. Qd6+ {[%emt 0:00:16]} Qf4+ {[%emt 0:00:00] Weighted Error Value: White=0.64/Black=0.19 (very precise)} 0-1